bitfinex-derivatives/quotes_SOLF0:USTF0_20251119
["timestamp","ask_amount","ask_price","bid_price","bid_amount"]
[1763559359076,0.04953144,137.99,137.96,3.21023134]
[1763559359377,3.18953144,137.99,137.96,3.21023134]
[1763559359679,0.04953144,137.99,137.97,18.52]
[1763559359882,6.5274,137.98,137.97,15.36]
[1763559360280,6.5274,137.98,137.96,3.21023134]
[1763559360481,6.5274,137.98,137.96,18.57023134]
[1763559360675,9.6674,137.98,137.96,0.05023134]
[1763559360871,3.14,137.97,137.96,0.05023134]
[1763559361281,3.14,137.93,137.85,3.16]
[1763559361474,1.97384301,137.92,137.86,15.36]
[1763559361675,6.5308,137.91,137.87,3.16]
[1763559361976,3.14,137.91,137.87,3.16]
[1763559362178,3.1862494,137.9,137.88,0.04986893]
[1763559362878,0.0462494,137.9,137.88,0.04986893]
[1763559363482,6.5775494,137.9,137.88,0.04986893]
[1763559364275,0.0462494,137.9,137.88,0.04986893]
[1763559364481,0.0462494,137.9,137.88,3.20986893]
[1763559366584,3.1862494,137.9,137.88,0.04986893]
[1763559366984,3.1862494,137.9,137.8,3.16]
[1763559366985,104.7906494,137.9,137.8,3.16]
[1763559367172,3.14,137.92,137.82,3.16]
[1763559367583,3.14,137.92,137.85,3.16]
[1763559367889,3.14,137.92,137.86,18.52]
[1763559368085,0.05316881,137.9,137.88,3.21380023]
[1763559368584,0.05316881,137.9,137.89,15.36]
[1763559368883,0.05316881,137.9,137.89,18.52]
[1763559369087,0.05316881,137.9,137.89,3.16]
[1763559369288,0.05316881,137.9,137.89,18.52]
[1763559370983,0.05316881,137.9,137.88,0.05380023]
[1763559371183,0.05316881,137.9,137.89,15.36]
[1763559371489,6.58446881,137.9,137.89,15.36]
[1763559372083,6.58446881,137.9,137.88,15.41380023]
[1763559372287,0.05316881,137.9,137.88,18.57380023]
[1763559372791,9.86476881,137.9,137.88,0.05380023]
[1763559372992,6.58476881,137.9,137.88,0.05380023]
[1763559373387,0.05316881,137.9,137.88,0.05380023]
[1763559373684,3.33316881,137.9,137.88,0.05380023]
[1763559374091,6.5329,137.87,137.81,3.16]
[1763559374280,3.28,137.86,137.82,3.16]
[1763559374479,3.28,137.86,137.83,15.36]
[1763559374682,6.533,137.87,137.83,18.52]
[1763559374880,9.813,137.87,137.83,18.52]
[1763559375086,9.8134,137.86,137.8,3.16]
[1763559375378,0.05203421,137.84,137.81,18.52]
[1763559375583,0.05203421,137.84,137.82,3.16]
[1763559375796,104.8504,137.94,137.83,3.16]
[1763559375994,116.85297333,137.97,137.87,104.7777]
[1763559375995,3.28,137.97,137.87,104.7777]
[1763559376192,9.8081,137.97,137.89,3.16]
[1763559376492,101.527,138.0,137.89,3.16]
[1763559376792,101.527,138.0,137.93,3.20661094]
[1763559376793,0.04579327,137.96,137.93,3.20661094]
[1763559376987,0.04579327,137.96,137.94,15.38]
[1763559377586,3.32579327,137.96,137.93,0.04661094]
[1763559378588,9.85439327,137.96,137.93,0.04661094]
[1763559378793,3.32579327,137.96,137.93,0.04661094]
[1763559378991,0.04579327,137.96,137.93,3.20661094]
[1763559379197,3.28,138.03,137.93,3.20661094]
[1763559379399,3.28,138.03,137.93,3.16]
[1763559379898,6.5257,138.02,137.95,3.16]
[1763559380600,6.5257,138.02,137.94,21.9091]
[1763559380601,0.04719245,138.0,137.97,3.21309111]
[1763559381199,0.04719245,138.0,137.98,15.38]
[1763559381999,0.04719245,138.0,137.98,18.54]
[1763559382388,0.04719245,138.0,137.98,15.38]
[1763559382591,0.04719245,138.0,137.98,18.54]
[1763559383010,0.04719245,138.0,137.98,15.38]
[1763559383193,0.04719245,138.0,137.98,18.54]
[1763559383397,0.04719245,138.0,137.98,15.38]
[1763559383700,3.32719245,138.0,137.98,15.38]
[1763559384002,3.32719245,138.0,137.97,15.43309111]
[1763559384303,3.28,137.98,137.97,0.05309111]
[1763559385694,3.28,137.97,137.93,15.38]
[1763559386193,3.28,137.97,137.87,13.24213301]
[1763559386194,104.83,137.97,137.89,3.16]
[1763559386389,3.28,137.96,137.9,15.38]
[1763559386588,104.837,137.96,137.9,15.38]
[1763559386795,6.58234603,137.94,137.92,0.04507971]
[1763559387899,9.86234603,137.94,137.92,0.04507971]
[1763559388406,6.58234603,137.94,137.92,0.04507971]
[1763559388594,9.86234603,137.94,137.92,0.04507971]
[1763559388796,6.58234603,137.94,137.92,0.04507971]
[1763559389193,0.05284603,137.94,137.92,3.20507971]
[1763559389797,3.28,138.01,137.92,3.20507971]
[1763559389998,108.18484103,138.05,137.92,3.16]
[1763559389999,3.28,138.04,137.92,3.16]
[1763559390203,3.28,138.04,137.92,104.7395]
[1763559390510,104.7774,138.04,137.95,3.16]
[1763559390694,104.7774,138.04,137.96,15.38]
[1763559390889,104.7774,138.04,137.92,101.5795]
[1763559390890,3.33342285,138.01,137.99,0.0496531]
[1763559391402,0.05342285,138.01,137.99,0.0496531]
[1763559392295,6.57962285,138.01,137.99,0.0496531]
[1763559392806,6.5276,137.98,137.94,15.38]
[1763559393108,3.3,137.98,137.92,3.22]
[1763559393407,6.528,137.97,137.93,18.6]
[1763559393601,3.3,137.98,137.93,18.6]
[1763559393797,3.35113133,137.97,137.94,0.04827264]
[1763559394193,6.5285,137.96,137.94,0.04827264]
[1763559394402,3.3,137.95,137.94,0.04827264]
[1763559394609,3.3,137.95,137.89,15.38]
[1763559394810,6.5301,137.93,137.89,15.38]
[1763559395205,6.5301,137.93,137.9,3.22]
[1763559395605,6.57766382,137.93,137.9,3.22]
[1763559396006,0.04756382,137.93,137.9,3.22]
[1763559396303,0.04756382,137.93,137.91,15.38]
[1763559396499,3.34756382,137.93,137.85,6.73482063]
[1763559396701,3.34756382,137.93,137.86,18.6]
[1763559396904,0.0535946,137.91,137.87,18.6]
[1763559397709,6.5314,137.9,137.87,15.38]
[1763559398019,0.0535946,137.91,137.87,18.64]
[1763559398210,9.7419,137.89,137.83,3.26]
[1763559398408,0.04926295,137.87,137.86,18.64]
[1763559398608,0.05090216,137.88,137.86,18.64]
[1763559399708,3.26090216,137.88,137.81,87.04]
[1763559399909,0.05090216,137.88,137.82,3.26]
[1763559400099,0.05090216,137.88,137.84,3.26]
[1763559401317,3.21,137.97,137.86,3.26]
[1763559401611,104.7586,137.97,137.86,3.26]
[1763559401908,3.21,137.97,137.88,3.26]
[1763559402110,3.21,137.97,137.9,3.26]
[1763559402500,9.7381,137.97,137.9,3.26]
[1763559402705,3.25692592,137.95,137.92,0.04926406]
[1763559403302,3.25692592,137.95,137.92,3.30926406]
[1763559403303,0.04692592,137.95,137.92,3.30926406]
[1763559404121,3.21,138.02,137.92,3.30926406]
[1763559404313,101.5171,138.01,137.93,15.38]
[1763559404622,101.5171,138.01,137.94,3.26]
[1763559404918,6.526,138.01,137.94,3.26]
[1763559405114,0.04705213,137.99,137.96,3.30830934]
[1763559406308,0.04705213,137.99,137.97,15.38]
[1763559406505,0.04705213,137.99,137.96,3.30830934]
[1763559406707,0.04705213,137.99,137.97,18.64]
[1763559406917,0.04705213,137.99,137.98,3.26]
[1763559407210,0.04705213,137.99,137.98,15.38]
[1763559407614,0.04705213,137.99,137.98,18.64]
[1763559408416,0.04705213,137.99,137.98,15.38]
[1763559408618,0.04705213,137.99,137.98,18.64]
[1763559408815,0.04705213,137.99,137.96,3.30830934]
[1763559409011,0.04705213,137.99,137.98,15.38]
[1763559409609,0.04705213,137.99,137.98,18.64]
[1763559410521,0.04705213,137.99,137.98,3.26]
[1763559410819,0.04705213,137.99,137.98,18.62]
[1763559411422,3.25705213,137.99,137.96,0.04830934]
[1763559411720,3.25705213,137.99,137.96,15.40830934]
[1763559411917,0.04705213,137.99,137.97,3.26]
[1763559412820,104.6927,138.06,137.97,3.26]
[1763559413416,3.21,138.04,137.97,3.26]
[1763559413618,3.26343236,138.02,137.99,0.04696516]
[1763559413815,6.5262,138.01,137.99,0.04696516]
[1763559414521,6.5262,138.01,137.99,15.40696516]
[1763559416010,9.7362,138.01,137.99,15.40696516]
[1763559416216,3.21,138.0,137.99,0.04696516]
[1763559416524,6.5262,138.01,137.99,15.40696516]
[1763559416719,0.05343236,138.02,137.99,18.66696516]
[1763559417222,0.05343236,138.02,138.0,3.26]
[1763559417922,0.05343236,138.02,138.01,3.26]
[1763559420225,0.05343236,138.02,138.01,18.62]
[1763559420723,6.57893236,138.02,138.01,15.36]
[1763559421119,0.05343236,138.02,137.99,3.30696516]
[1763559421315,3.21,138.0,137.99,0.04696516]
[1763559421627,3.21,138.0,137.92,9.99482063]
[1763559421628,3.21,137.99,137.92,3.26]
[1763559421827,6.5278,137.98,137.94,3.26]
[1763559422123,3.21,137.99,137.94,3.26]
[1763559422325,6.5285,137.96,137.94,3.26]
[1763559422526,6.5285,137.96,137.95,0.0488161]
[1763559422527,9.7385,137.96,137.95,0.0488161]
[1763559422718,6.5285,137.96,137.94,3.31455265]
[1763559423519,0.04907072,137.97,137.94,3.31455265]
[1763559423914,6.5258,138.02,137.95,3.26]
[1763559424123,3.21,138.03,137.95,3.26]
[1763559424829,6.5262,138.01,137.95,3.26]
[1763559425228,0.05444792,137.99,137.97,3.31467784]
[1763559425428,0.05444792,137.99,137.98,15.36]
[1763559425831,0.05444792,137.99,137.97,0.05467784]
[1763559425832,3.26444792,137.99,137.97,0.05467784]
[1763559426221,9.7374,137.98,137.97,0.05467784]
[1763559427231,6.5287,137.96,137.9,3.26]
[1763559427427,6.5287,137.96,137.92,3.26]
[1763559428230,6.5287,137.96,137.93,0.04932835]
[1763559428432,0.04631004,137.95,137.93,0.04932835]
[1763559428631,6.57531004,137.95,137.93,15.40932835]
[1763559429024,6.57531004,137.95,137.93,18.55932835]
[1763559430335,6.57531004,137.95,137.93,15.40932835]
[1763559430531,6.57531004,137.95,137.93,18.55932835]
[1763559430734,0.04631004,137.95,137.93,18.55932835]
[1763559431932,0.04631004,137.95,137.94,3.15]
[1763559432131,3.26,138.04,137.94,4.59]
[1763559432331,3.26,138.04,137.92,101.5795]
[1763559432332,3.26,138.04,137.95,18.51]
[1763559432636,6.5261,138.01,137.96,3.15]
[1763559433033,9.7853,138.03,137.96,3.15]
[1763559433338,3.26,138.03,137.97,3.15]
[1763559433819,0.04787865,138.01,137.99,3.19688406]
[1763559434020,0.04598549,138.01,137.99,3.19688406]
[1763559435135,0.04598549,138.01,137.99,18.55688406]
[1763559436925,0.04598549,138.01,138.0,3.15]
[1763559437635,3.26,138.06,138.0,18.51]
[1763559438034,6.5247,138.04,138.01,18.51]
[1763559438234,3.26,138.06,138.01,18.51]
[1763559438438,3.26,138.06,138.02,3.15]
[1763559438937,0.04654906,138.05,138.03,0.05260674]
[1763559440040,6.57074906,138.05,138.03,0.05260674]
[1763559440241,3.26,138.04,138.03,0.05260674]
[1763559440627,0.04654906,138.05,138.03,3.20260674]
[1763559442634,0.04654906,138.05,138.04,15.36]
[1763559442838,0.04654906,138.05,138.04,15.34]
[1763559443639,0.04654906,138.05,138.04,18.49]
[1763559446842,3.26,138.1,138.05,3.24]
[1763559447143,2.99,138.08,138.04,18.58]
[1763559447342,8.12943997,138.11,138.05,3.24]
[1763559447538,14.65103997,138.11,138.05,3.24]
[1763559447837,14.65103997,138.11,138.07,0.0477009]
[1763559447838,0.05113416,138.09,138.07,0.0477009]
[1763559448237,6.57343416,138.09,138.07,0.0477009]
[1763559448435,9.56343416,138.09,138.07,0.0477009]
[1763559448830,0.05113416,138.09,138.07,3.2877009]
[1763559449038,3.04113416,138.09,138.07,0.0477009]
[1763559449339,3.04113416,138.09,138.06,15.34]
[1763559449340,2.99,138.04,137.97,9.97482063]
[1763559449534,2.99,138.04,137.96,8.98476093]
[1763559449535,104.4651,138.07,137.99,3.24]
[1763559449738,104.4725,138.06,138.0,15.34]
[1763559450334,6.5251,138.03,138.02,0.04676411]
[1763559451141,0.04912776,138.04,138.02,3.28676411]
[1763559452242,3.03912776,138.04,138.02,0.04676411]
[1763559452946,3.03912776,138.04,137.98,18.58]
[1763559452947,2.99,138.02,137.98,18.58]
[1763559453146,1.97413405,138.01,137.98,18.58]
[1763559453349,1.97413405,138.02,137.99,3.24]
[1763559453539,1.97413405,138.02,137.98,18.58]
[1763559453738,0.04629301,138.01,137.99,3.28626397]
[1763559455153,1.97413405,138.0,137.99,0.04626397]
[1763559456446,4.96413405,138.0,137.99,0.04626397]
[1763559457742,0.04629301,138.01,137.99,3.32626397]
[1763559465561,0.04629301,138.01,138.0,15.32]
[1763559466252,0.04629301,138.01,138.0,18.6]
[1763559466453,0.04629301,138.01,138.0,15.32]
[1763559467054,0.04629301,138.01,138.0,18.6]
[1763559468054,1.97413405,138.05,138.01,3.28]
[1763559469052,1.97413405,138.05,138.02,0.05537937]
[1763559469259,0.05319498,138.04,138.02,3.33537937]
[1763559471263,6.57779498,138.04,138.02,3.33537937]
[1763559472263,6.57779498,138.04,138.03,15.32]
[1763559473068,0.05319498,138.04,138.03,15.32]
[1763559474959,0.05319498,138.04,138.03,18.6]
[1763559475363,0.05319498,138.04,138.03,15.32]
[1763559475967,0.05319498,138.04,138.02,0.05537937]
[1763559476168,0.05319498,138.04,138.03,15.32]
[1763559477164,0.05319498,138.04,138.03,18.6]
[1763559480560,3.16319498,138.04,138.02,0.05537937]
[1763559480762,1.97413405,138.03,138.02,15.35537937]
[1763559480961,6.57789498,138.04,138.02,15.35537937]
[1763559481163,9.68789498,138.04,138.02,15.35537937]
[1763559481359,5.08413405,138.03,138.02,0.05537937]
[1763559485568,1.97413405,138.03,138.02,3.33537937]
[1763559485764,0.05319498,138.04,138.02,3.33537937]
[1763559486374,6.57779498,138.04,138.02,0.05537937]
[1763559487462,6.57779498,138.04,138.02,15.35537937]
[1763559487863,5.14413405,138.03,138.02,0.05537937]
[1763559488371,1.97413405,138.03,138.02,3.18537937]
[1763559488567,8.55192903,138.04,138.02,3.18537937]
[1763559488769,11.72192903,138.04,138.02,0.05537937]
[1763559489171,3.17,138.03,138.02,0.05537937]
[1763559490274,8.55192903,138.04,138.02,0.05537937]
[1763559490472,2.02732903,138.04,138.02,3.18537937]
[1763559490975,0.05319498,138.04,138.02,3.18537937]
[1763559491278,5.14413405,138.09,138.03,3.13]
[1763559491575,1.97413405,138.07,138.03,3.13]
[1763559491773,9.84528402,138.13,138.04,3.13]
[1763559491979,1.97413405,138.12,138.06,3.13]
[1763559492184,0.04887274,138.1,138.08,3.17759854]
[1763559492373,0.05032676,138.1,138.08,3.17759854]
[1763559494085,0.05032676,138.1,138.09,15.3]
[1763559494374,0.05032676,138.1,138.09,18.43]
[1763559498474,0.05032676,138.1,138.09,3.13]
[1763559498674,0.05032676,138.1,138.09,18.41]
[1763559502367,0.05032676,138.1,138.09,3.13]
[1763559502567,0.05032676,138.1,138.09,18.41]
[1763559503178,0.05032676,138.1,138.08,0.04759854]
[1763559503477,0.05032676,138.1,138.09,3.13]
[1763559504781,3.02,138.09,138.08,0.04759854]
[1763559510677,6.57222676,138.1,138.08,0.04759854]
[1763559510878,6.57222676,138.1,138.08,3.05759854]
[1763559511077,9.59222676,138.1,138.08,0.04759854]
[1763559514081,3.02,138.09,138.08,0.04759854]
[1763559514481,9.59222676,138.1,138.08,0.04759854]
[1763559516390,3.02,138.09,138.08,0.04759854]
[1763559520590,3.01,138.06,138.03,18.46]
[1763559520790,3.01,138.06,138.04,3.2]
[1763559521091,3.01,138.06,138.03,15.26]
[1763559521294,3.01,138.1,138.04,3.2]
[1763559521478,0.04577578,138.08,138.06,0.05163057]
[1763559521678,3.01,138.07,138.06,0.05163057]
[1763559521884,9.5332,138.07,138.06,0.05163057]
[1763559522894,0.04577578,138.08,138.06,3.25163057]
[1763559524786,6.56857578,138.08,138.06,3.25163057]
[1763559525094,0.04577578,138.08,138.06,3.25163057]
[1763559533098,0.04577578,138.08,138.07,18.46]
[1763559538302,3.05577578,138.08,138.06,0.05163057]
[1763559538898,9.57867578,138.08,138.06,11.63163057]
[1763559539099,3.01,138.07,138.06,11.63163057]
[1763559539300,6.56867578,138.08,138.06,14.83163057]
[1763559539601,3.01,138.07,138.06,11.63163057]
[1763559539811,3.01,138.07,138.06,0.05163057]
[1763559541396,9.57867578,138.08,138.06,0.05163057]
[1763559541597,3.01,138.07,138.06,0.05163057]
[1763559542807,3.01,138.05,138.02,15.26]
[1763559543105,3.01,138.05,138.02,18.46]
[1763559543603,3.01,138.05,138.03,3.2]
[1763559543903,0.05180022,138.05,138.03,3.24574486]
[1763559544605,0.05180022,138.05,138.04,18.46]
[1763559545390,0.05180022,138.05,138.04,3.2]
[1763559545591,0.05180022,138.05,138.04,15.26]
[1763559546005,0.05180022,138.05,138.04,18.46]
[1763559550203,3.36180022,138.05,138.04,15.26]
[1763559551005,0.05180022,138.05,138.04,15.26]
[1763559551797,0.05180022,138.05,138.04,18.52]
[1763559553106,3.36180022,138.05,138.03,0.04574486]
[1763559554398,9.88600022,138.05,138.03,0.04574486]
[1763559554599,3.31,138.04,138.03,0.04574486]
[1763559554799,3.31,138.04,137.98,6.75166404]
[1763559555001,6.5263,138.01,137.99,15.26]
[1763559555307,3.31,138.03,137.99,18.52]
[1763559555505,3.31,138.03,138.0,3.26]
[1763559555702,3.31,138.02,137.96,10.01166404]
[1763559555900,101.4978,138.04,137.96,10.01166404]
[1763559555901,3.31,137.99,137.98,0.0557466]
[1763559556209,9.88579192,138.0,137.98,0.0557466]
[1763559556711,3.31,137.99,137.98,0.0557466]
[1763559556914,6.57579192,138.0,137.94,15.26]
[1763559556915,3.31,137.97,137.94,15.26]
[1763559557208,3.31,137.97,137.94,18.52]
[1763559557798,3.35884087,137.97,137.94,18.55545493]
[1763559558003,0.04884087,137.97,137.94,18.55545493]
[1763559558707,0.04884087,137.97,137.94,3.29545493]
[1763559558906,0.04884087,137.97,137.95,15.26]
[1763559559911,3.31,137.96,137.95,15.26]
[1763559560109,3.31,137.96,137.94,15.29545493]
[1763559560511,9.8385,137.96,137.94,15.29545493]
[1763559560903,6.5285,137.96,137.94,18.55545493]
[1763559561210,5.33358041,137.97,137.94,18.55545493]
[1763559561512,0.04884087,137.97,137.95,3.26]
[1763559562710,6.57694087,137.97,137.95,3.26]
[1763559563414,9.88694087,137.97,137.94,18.55545493]
[1763559564114,0.04884087,137.97,137.95,3.04]
[1763559565605,6.57694087,137.97,137.95,3.04]
[1763559565908,3.04884087,137.97,137.94,3.07545493]
[1763559566115,0.04884087,137.97,137.94,3.07545493]
[1763559568116,11.50013954,138.03,137.96,3.04]
[1763559568318,1.97473954,138.03,137.98,3.04]
[1763559568517,1.97473954,138.03,138.0,3.04]
[1763559568712,4.97473954,138.03,138.0,3.04]
[1763559568916,4.97473954,138.05,138.0,3.04]
[1763559569308,3.0,138.04,138.0,3.04]
[1763559569515,0.04651508,138.03,138.01,15.30581413]
[1763559570120,3.0,138.0,137.96,15.26]
[1763559570419,4.97473954,137.99,137.94,3.04]
[1763559570631,3.0,137.99,137.96,3.04]
[1763559570919,6.5276,137.98,137.96,3.04]
[1763559571318,0.05471246,137.98,137.96,3.07848167]
[1763559573014,0.05471246,137.98,137.97,18.3]
[1763559573216,1.97473954,138.04,137.98,3.04]
[1763559573718,3.0,138.01,137.98,3.04]
[1763559573920,1.97473954,138.02,137.98,3.04]
[1763559574221,0.04665605,138.01,138.0,3.04]
[1763559574816,0.04665605,138.01,137.99,0.05378883]
[1763559574817,3.0,138.0,137.99,0.05378883]
[1763559575026,4.97473954,138.0,137.99,0.05378883]
[1763559575719,6.57275605,138.01,137.99,0.05378883]
[1763559575921,0.04665605,138.01,137.99,3.09378883]
[1763559578523,0.04665605,138.01,137.99,0.05378883]
[1763559578524,3.16,138.0,137.99,0.05378883]
[1763559579324,5.13473954,138.0,137.99,0.05378883]
[1763559579824,3.16,137.99,137.95,13.92]
[1763559580122,3.16,137.99,137.94,15.26]
[1763559580326,3.16,137.99,137.95,3.18]
[1763559580718,3.21283426,137.98,137.96,0.03940529]
[1763559580917,0.05283426,137.98,137.96,0.03940529]
[1763559581217,0.05283426,137.98,137.96,3.21940529]
[1763559581413,11.7150738,137.98,137.96,0.03940529]
[1763559581616,3.16,137.97,137.96,0.03940529]
[1763559582022,3.16,137.95,137.91,3.18]
[1763559582227,3.16,137.95,137.92,18.44]
[1763559582424,6.5294,137.94,137.89,3.18]
[1763559582620,9.6894,137.94,137.9,18.44]
[1763559582826,9.6894,137.94,137.91,3.18]
[1763559583131,9.7389465,137.94,137.91,3.18]
[1763559583818,3.16,137.92,137.88,3.18]
[1763559584017,5.13473954,137.92,137.89,15.26]
[1763559584229,5.13473954,137.92,137.89,18.44]
[1763559584425,11.66523954,137.92,137.89,18.44]
[1763559584627,3.16,137.91,137.86,90.2]
[1763559584822,3.16,137.87,137.81,6.73407204]
[1763559585128,0.0534845,137.85,137.79,3.18]
[1763559585730,0.0534845,137.85,137.81,3.18]
[1763559586126,3.16,137.89,137.79,3.18]
[1763559586127,1.97473954,137.88,137.79,3.18]
[1763559586424,3.16,137.87,137.81,3.18]
[1763559586629,1.97473954,137.89,137.82,3.18]
[1763559587326,0.05563624,137.87,137.85,3.18]
[1763559587835,5.13473954,137.92,137.87,3.18]
[1763559588024,3.16,137.91,137.87,3.18]
[1763559588324,101.5641,137.95,137.79,101.6745]
[1763559588325,5.13473954,137.9,137.86,18.44]
[1763559588721,0.0523597,137.89,137.87,3.22667344]
[1763559588916,0.0523597,137.89,137.87,0.04667344]
[1763559589122,3.2123597,137.89,137.87,0.04667344]
[1763559589318,0.0523597,137.89,137.87,0.04667344]
[1763559589932,0.0523597,137.89,137.87,3.22667344]
[1763559591129,0.0523597,137.89,137.88,18.46]
[1763559591734,1.97473954,137.94,137.89,3.18]
[1763559592641,0.04578138,137.93,137.91,3.18]
[1763559594038,0.04578138,137.93,137.9,3.22868775]
[1763559594234,3.20578138,137.93,137.9,0.04868775]
[1763559594425,1.97473954,137.92,137.9,15.32868775]
[1763559594628,3.20578138,137.93,137.9,18.50868775]
[1763559594823,3.20578138,137.93,137.9,15.32868775]
[1763559595124,3.20578138,137.93,137.9,0.04868775]
[1763559595738,9.73578138,137.93,137.9,0.04868775]
[1763559595940,3.16,137.92,137.9,0.04868775]
[1763559596528,0.04578138,137.93,137.9,3.22868775]
[1763559596832,3.20578138,137.93,137.9,0.04868775]
[1763559597133,3.16,137.91,137.9,0.04868775]
[1763559597325,5.13473954,137.91,137.9,0.04868775]
[1763559598539,1.97473954,137.91,137.9,0.04868775]
[1763559598734,5.13473954,137.91,137.9,0.04868775]
[1763559599334,0.04578138,137.93,137.9,0.04868775]
[1763559599335,3.20578138,137.93,137.9,0.04868775]
[1763559599735,5.18052092,137.93,137.9,0.04868775]
[1763559599942,5.13473954,137.91,137.9,0.04868775]
[1763559600528,103.56833954,137.91,137.83,1.97473954]
[1763559600732,3.16,137.88,137.82,3.18]
[1763559600935,1.97473954,137.88,137.84,3.18]
[1763559601140,5.13473954,137.88,137.84,3.18]
[1763559601535,5.13473954,137.88,137.85,0.04601995]
[1763559601742,3.16,137.86,137.85,0.04601995]
[1763559601927,3.16,137.86,137.78,6.73407204]
[1763559601928,3.16,137.86,137.78,5.15473954]
[1763559602128,5.13473954,137.85,137.79,15.28]
[1763559602337,9.6942,137.84,137.8,3.18]
[1763559602531,6.5342,137.84,137.8,3.18]
[1763559602732,104.7834,137.87,137.8,3.18]
[1763559602940,0.05456477,137.85,137.82,0.04899025]
[1763559603135,3.21456477,137.85,137.82,0.04899025]
[1763559603340,0.05456477,137.85,137.82,3.22899025]
[1763559603849,3.16,137.92,137.82,3.22899025]
[1763559604142,6.531,137.91,137.85,3.18]
[1763559604343,9.691,137.91,137.87,3.18]
[1763559605141,9.74010362,137.9,137.88,0.05446715]
[1763559605632,3.16,137.89,137.88,0.05446715]
[1763559606547,9.693,137.87,137.8,3.18]
[1763559606738,9.693,137.87,137.78,6.73407204]
[1763559606739,9.693,137.87,137.81,18.46]
[1763559607136,3.16,137.87,137.82,3.18]
[1763559607339,3.16,137.87,137.81,15.28]
[1763559607340,3.16,137.84,137.77,5.21003734]
[1763559607551,3.16,137.84,137.79,0.05399795]
[1763559607552,3.16,137.8,137.79,0.05399795]
[1763559607738,3.16,137.8,137.77,2.03003734]
[1763559608042,3.16,137.79,137.77,2.03003734]
[1763559608754,3.16,137.78,137.77,1.65392941]
[1763559608950,0.05029467,137.79,137.77,4.80392941]
[1763559609145,0.05029467,137.79,137.77,1.65392941]
[1763559609445,3.16,137.85,137.78,3.15]
[1763559609651,3.16,137.89,137.78,3.15]
[1763559610340,101.6155,137.88,137.79,18.45]
[1763559610650,0.05123959,137.85,137.82,3.19970315]
[1763559612345,3.21123959,137.85,137.83,15.3]
[1763559612547,0.05123959,137.85,137.83,15.3]
[1763559613145,0.05123959,137.85,137.84,3.15]
[1763559613545,0.05123959,137.85,137.83,18.45]
[1763559614245,0.05123959,137.85,137.82,0.04970315]
[1763559614447,3.21123959,137.85,137.82,0.04970315]
[1763559615041,0.05123959,137.85,137.82,3.19970315]
[1763559617554,0.05123959,137.85,137.83,18.45]
[1763559619553,0.05123959,137.85,137.84,3.15]
[1763559619856,0.05123959,137.85,137.83,3.15]
[1763559620154,3.21123959,137.85,137.82,0.04970315]
[1763559620456,6.5343,137.84,137.82,0.04970315]
[1763559621351,3.21123959,137.85,137.82,0.04970315]
[1763559621551,0.05123959,137.85,137.82,3.19970315]
[1763559622158,0.05123959,137.85,137.83,3.15]
[1763559622746,6.5311,137.91,137.84,6.5339]
[1763559622952,3.16,137.91,137.8,3.15]
[1763559623251,3.16,137.91,137.82,3.15]
[1763559623455,6.5314,137.9,137.83,3.15]
[1763559623760,0.05165293,137.88,137.86,3.15]
[1763559623959,3.21165293,137.88,137.85,0.04762135]
[1763559624758,6.5327,137.87,137.85,0.04762135]
[1763559624959,3.21165293,137.88,137.85,0.04762135]
[1763559626049,0.05165293,137.88,137.85,3.20762135]
[1763559629056,0.05165293,137.88,137.87,3.16]
[1763559629555,3.24,137.95,137.87,3.16]
[1763559629760,3.24,137.93,137.88,15.3]
[1763559630060,6.5299,137.93,137.89,3.16]
[1763559630459,0.05070069,137.92,137.9,0.04871218]
[1763559630765,0.05070069,137.92,137.9,3.20871218]
[1763559631366,6.58110069,137.92,137.9,3.20871218]